Cogmind - Beta 16 --- EXPLORER MODE // 2025.12.04 @ 08:41:32 Player: K.K.Y. Result: Destroyed by YK-7FX(R) with Subdweller Beam Cannon Performance ------------- Evolutions (0) 0 Regions Visited (3) 600 Robots Destroyed (36) 180 Value Destroyed (668) 668 Prototype IDs (0) 0 Alien Tech Used (0) 0 Bonus (60) 60 TOTAL SCORE: 1508 Bonus ------- Follower Combat Kills 60 Cogmind --------- Core Integrity 0/250 Matter 300/300 Energy 100/100 System Corruption 1% Temperature Cool (9) Movement Core (50) Location -10/Subcaves Parts ------- > --- POWER (1) -------- (None) > --- PROPULSION (2) --- (None) > --- UTILITY (3) ------ Improved Terrain Scanner Terrain Scan Processor Terrain Scan Processor > --- WEAPON (2) ------- (None) > --- INVENTORY (5) ---- Scrap Suit Huge Storage Unit Structural Scanner Makeshift Hacking Suite Peak State ------------ > --- POWER ------------ Ion Engine > --- PROPULSION ------- Light Treads Light Treads > --- UTILITY ---------- Improved Terrain Scanner Terrain Scan Processor Terrain Scan Processor > --- WEAPON ----------- Battle Rifle Barrage Gun > --- INVENTORY -------- Scrap Suit Huge Storage Unit Structural Scanner Light Assault Rifle [Rating: 16] Favorites ----------- Power Ion Engine Engine Ion Engine Propulsion Light Treads Treads Light Treads Utility Terrain Scan Processor Device Improved Terrain Scanner Processor Terrain Scan Processor Weapon Small Laser Energy Gun Small Laser Ballistic Gun Barrage Gun Ballistic Cannon Battle Cannon Special Weapon Mining Laser Build | -11 -10 -10 -10 ------- Run | Yrd Mat Min Sub Slots Evolved 1 | . 1 . . Power . | . . . . Propulsion . | . . . . Utility 1 | . 1 . . Weapon . | . . . . Parts Attached 15 | 4 5 . 6 Power 2 | 1 1 . . Engine 2 | 1 1 . . Core . | . . . . Reactor . | . . . . Propulsion 2 | 2 . . . Treads 2 | 2 . . . Leg . | . . . . Wheel . | . . . . Hover . | . . . . Flight . | . . . . Utility 3 | . 3 . . Device 1 | . 1 . . Storage . | . . . . Processor 2 | . 2 . . Hackware . | . . . . Protection . | . . . . Artifact . | . . . . Weapon 8 | 1 1 . 6 Energy Gun 3 | 1 1 . 1 Energy Cannon . | . . . . Ballistic Gun 3 | . . . 3 Ballistic Cannon 1 | . . . 1 Launcher . | . . . . Special Weapon 1 | . . . 1 Impact Weapon . | . . . . Slashing Weapon . | . . . . Piercing Weapon . | . . . . Special Melee Weapon . | . . . . Unidentified Prototypes . | . . . . Parts Lost 6 | . . . 6 Power 1 | . . . 1 Propulsion 2 | . . . 2 Utility . | . . . . Weapon 3 | . . . 3 Highest Loss Streak 2 | . . . 2 To Critical Strikes 1 | . . . 1 Average Backups 3 | 2 4 4 3 Power . | . . . . Propulsion . | . . . . Utility 3 | 1 3 3 3 Weapon . | . 1 1 . Tool/Special . | . . . . Unused Backups 6 | . . 1 5 Power . | . . . . Propulsion . | . . . . Utility 5 | . . 1 4 Weapon 1 | . . . 1 Tool/Special . | . . . . Average Slot Usage (%) 86 | . 79 100 84 Engine 10 | . 12 12 9 Treads 18 | . 25 25 12 Device 10 | . 6 12 12 Processor 21 | . 13 25 25 Energy Gun 16 | . 22 25 9 Ballistic Gun 4 | . . . 9 Special Weapon 2 | . . . 4 Peak Build Rating 16 | 4 12 13 16 Average Rating 12 | 3 8 12 13 On Entrance 7 | . 4 12 13 Avg Prop Armor Cover (%) . | . . . . Naked Turns . | . . . . Heaviest Build 12 | 4 8 8 12 Greatest Support 40 | 40 40 40 40 Greatest Overweight (x) 3 | . . . 3 Average Overweight (x) . | . . . 1 Largest Inventory Capacity 5 | 5 5 5 5 Average Capacity 5 | 5 5 5 5 Most Carried 5 | 5 5 5 5 Average Carried 4 | 2 4 4 4 Final Capacity 5 | 5 5 5 5 Final Carried 5 | 3 4 5 5 Class Distribution -------------------- 100% | Hacker-Mutant Dominant Class ---------------- Hacker-Mutant | -10/Materials Hacker-Mutant | -10/Mines Hacker-Mutant | -10/Subcaves Resources | -11 -10 -10 -10 ----------- Run | Yrd Mat Min Sub Matter Collected 672 | 180 110 . 382 Remotely . | . . . . Salvage Created 1052 | 91 496 200 265 Parts 88 | 5 44 16 23 Haulers Intercepted 2 | . 2 . . Recyclers Shooed 1 | . 1 . . Parts Field Recycled . | . . . . Retrieved Matter . | . . . . Parts Self-Destructed . | . . . . Prevented . | . . . . Parts Restored . | . . . . Kills | -11 -10 -10 -10 ------- Run | Yrd Mat Min Sub Combat Hostiles Destroyed 23 | . 9 8 6 Guns 22 | . 9 8 5 Cannons 1 | . . . 1 Classes Destroyed 9 | 2 5 . 2 Builder 2 | . 2 . . Tunneler 2 | 1 . 1 . Hauler 2 | . 2 . . Recycler 2 | 1 1 . . Turret 2 | . . . 2 Watcher 3 | . 3 . . Swarmer 13 | . 5 6 2 Grunt 6 | . 4 2 . Subdweller 4 | . . . 4 Best Kill Streak 5 | 2 5 2 2 Combat Bots Only 2 | . 2 2 2 Max Kills in Single Turn 1 | 1 1 1 1 Gunslinging . | . . . . Exploded . | . . . . Melee . | . . . . Uniques/NPCs Destroyed . | . . . . Combat | -11 -10 -10 -10 -------- Run | Yrd Mat Min Sub Hostile Shots Fired 203 | . 34 28 141 Missed 87 | . 15 9 63 Hits 116 | . 19 19 78 Projectile 116 | . 19 19 78 Critical Strikes 2 | . . 1 1 Damage Taken 912 | . 120 99 693 Core 253 | . 27 12 214 Absorbed by Shields . | . . . . Ignored by Resistances 567 | . 80 70 417 Core Remaining (%) 100 | 100 . . . Volleys Fired 186 | 4 55 16 111 Largest 2 | 1 2 2 2 Hottest 140 | 40 80 80 140 Shots Fired 336 | 4 83 32 217 Gun 291 | 4 83 32 172 Cannon . | . . . . Launcher . | . . . . Special 45 | . . . 45 Kinetic 95 | . . . 95 Thermal 212 | 4 83 32 93 Explosive . | . . . . Electromagnetic 29 | . . . 29 Robot Hit Streak 52 | 4 16 17 52 Robot Miss Streak 2 | . 2 1 1 Penetration Max . | . . . . Secondary Targets 2 | . . 1 1 Max Gunslinging Chain 1 | . . 1 1 Shots Hit Robots 149 | 4 67 22 56 Core Hits 64 | 3 27 12 22 Critical Kills . | . . . . Critical Parts Destroyed . | . . . . Critical Strikes . | . . . . Melee Attacks . | . . . . Impact . | . . . . Slashing . | . . . . Piercing . | . . . . Sneak Attacks . | . . . . Combat Hostiles . | . . . . Follow-up Attacks . | . . . . Damage Inflicted 1885 | 42 735 268 840 Guns 1848 | 42 735 268 803 Cannons . | . . . . Explosions . | . . . . Melee . | . . . . Ramming 13 | . . . 13 Kinetic 639 | . . . 639 Thermal 1101 | 42 735 268 56 Explosive . | . . . . Electromagnetic 132 | . . . 132 Impact . | . . . . Slashing . | . . . . Piercing . | . . . . Highest Corruption 1 | . . . 1 Average Corruption 1 | . . . 1 Corruption Purged . | . . . . Corruption Blocked . | . . . . Overload Shots . | . . . . Overflow Damage . | . . . . Projectiles . | . . . . Explosions . | . . . . Melee . | . . . . Knockbacks . | . . . . Impact . | . . . . Kinetic . | . . . . Secondary . | . . . . Self-Inflicted Damage 5 | . . . 5 Shots . | . . . . Rammed 6 | . . . 6 Targets Rammed 6 | . . . 6 Kicked . | . . . . Crushed . | . . . . Highest Temperature 150 | 2 150 147 6 Average Temperature 38 | 2 36 43 5 Received Heat Transfer 519 | . 84 57 378 Siege Activations . | . . . . Martial Activations . | . . . . Shielding Activations . | . . . . Robots Disrupted . | . . . . Combat Hostiles . | . . . . Robots Corrupted . | . . . . Combat Hostiles . | . . . . Parts Fried 1 | . . . 1 Impact Corruptions . | . . . . Robots Melted . | . . . . Combat Hostiles . | . . . . Parts Melted 4 | . 2 2 . Heat Transferred 2500 | 100 1675 600 125 Parts Sabotaged . | . . . . Parts Stolen . | . . . . Parts Stripped . | . . . . Power Chain Reactions . | . . . . Alert | -11 -10 -10 -10 ------- Run | Yrd Mat Min Sub Maximum Alert Level . | . . . . Low Security (%) 100 | 100 100 100 . Level 1 . | . . . . Level 2 . | . . . . Level 3 . | . . . . Level 4 . | . . . . Level 5 . | . . . . High Security . | . . . . Max Security . | . . . . Peak Influence 65 | 5 65 50 . Initial . | . . . . Average 5 | . 6 5 . Influence Increases 684 | 10 295 209 170 Destroy 0b10 Robot/C 420 | . 180 160 80 Destroy 0b10 Robot/NC 55 | 10 40 5 . Destroy Leader 90 | . 50 40 . Allied During Kill 4 | . . 4 . Successful Hack 10 | . 10 . . Lose Combat Pursuer 105 | . 15 . 90 Influence Decreases 684 | 10 295 209 170 Time Decay 674 | 10 295 209 160 Lost Part 10 | . . . 10 Squads Dispatched . | . . . . Investigation . | . . . . Extermination . | . . . . Reinforcement . | . . . . Assault . | . . . . Garrison . | . . . . Intercept . | . . . . Searches Triggered . | . . . . Construction Impeded . | . . . . Haulers Reinforced . | . . . . Active Scanning Responses . | . . . . Cargo Convoy Interrupts . | . . . . Stealth | -11 -10 -10 -10 --------- Run | Yrd Mat Min Sub Distress Signals 1 | . 1 . . Communications Jammed . | . . . . Distress Signals . | . . . . Times Spotted 45 | . 20 8 17 Peak Tracking Total 4 | . 4 2 4 Tactical Retreats 4 | . 1 . 3 Traps | -11 -10 -10 -10 ------- Run | Yrd Mat Min Sub Traps Triggered 1 | . . . 1 Indirectly . | . . . . Trap Hack Attempts . | . . . . Triggered . | . . . . Disarmed . | . . . . Reprogrammed . | . . . . Reused . | . . . . Traps Extracted . | . . . . Installed . | . . . . Triggered . | . . . . Machines | -11 -10 -10 -10 ---------- Run | Yrd Mat Min Sub Machines Disabled . | . . . . Max in Single Turn . | . . . . Machines Repaired . | . . . . Machines Dismantled . | . . . . Machines Sabotaged . | . . . . Overloaded Fab Kills . | . . . . Hacking | -11 -10 -10 -10 --------- Run | Yrd Mat Min Sub Machines Accessed 8 | . 8 . . Terminals 8 | . 8 . . Fabricators . | . . . . Repair Stations . | . . . . Recycling Units . | . . . . Scanalyzers . | . . . . Garrison Access . | . . . . Total Hacks 12 | . 12 . . Successful 11 | . 11 . . Failed 1 | . 1 . . Catastrophic . | . . . . Database Lockouts . | . . . . Manual 10 | . 10 . . Terminals 12 | . 12 . . Fabricators . | . . . . Repair Stations . | . . . . Recycling Units . | . . . . Scanalyzers . | . . . . Garrison Access . | . . . . Terminal Hacks 3 | . 3 . . Robot Analysis 2 | . 2 . . Terminal Index 1 | . 1 . . Fabricator Hacks . | . . . . Repair Station Hacks . | . . . . Recycling Unit Hacks . | . . . . Scanalyzer . | . . . . Garrison Access Hacks . | . . . . Unauthorized Hacks 8 | . 8 . . Terminals 8 | . 8 . . Botnet 8 | . 8 . . Fabricators . | . . . . Repair Stations . | . . . . Recycling Units . | . . . . Scanalyzers . | . . . . Garrison Access . | . . . . Data Cores Recovered . | . . . . Used . | . . . . Hacking Detections 4 | . 4 . . Full Trace Events . | . . . . Feedback Events . | . . . . Feedback Blocked . | . . . . Robot Schematics Acquired . | . . . . Robots Built . | . . . . Authchips . | . . . . Time . | . . . . Total Robot Build Rating . | . . . . Part Schematics Acquired . | . . . . Parts Built . | . . . . Authchips . | . . . . Time . | . . . . Total Part Build Rating . | . . . . Part Studies Acquired . | . . . . Parts Repaired . | . . . . Time . | . . . . Parts Recycled . | . . . . Recycled Matter . | . . . . Retrieved Matter . | . . . . Retrieved Components . | . . . . Parts Scanalyzed . | . . . . Part Schematics Acquired . | . . . . Parts Damaged . | . . . . Bothacking | -11 -10 -10 -10 ------------ Run | Yrd Mat Min Sub Used RIF Installer . | . . . . Robots Hacked . | . . . . Non-combat . | . . . . Combat . | . . . . Robot Hacks Applied . | . . . . Relay Couplers Released . | . . . . Fabnet Peak Effective % . | . . . . Robots Rewired . | . . . . Allies Hacked . | . . . . Hacks Repelled . | . . . . Allies | -11 -10 -10 -10 -------- Run | Yrd Mat Min Sub Total Allies 3 | . . 3 . Largest Group 3 | . . 3 3 Highest-Rated Group 40 | . . 40 40 Highest-Rated Ally 16 | . . 16 16 Total Orders . | . . . . Ally Attacks 12 | . . . 12 Total Damage 86 | . . . 86 Kills 2 | . . . 2 Allies Corrupted . | . . . . Allies Melted . | . . . . Intel | -11 -10 -10 -10 ------- Run | Yrd Mat Min Sub Active Infowar (turns) 4839 | . 749 1273 2817 Terrain 4839 | . 749 1273 2817 Robot Analysis Total 2 | . 2 . . Derelict Logs Recovered 3 | . . 1 2 Drone Launches . | . . . . Drone Recoveries . | . . . . Exploration | -11 -10 -10 -10 ------------- Run | Yrd Mat Min Sub Turns Passed 5590 | 77 1423 1273 2817 Spaces Moved 2575 | 48 670 735 1122 Core 642 | 16 . . 626 Treads 1933 | 32 670 735 496 Legs . | . . . . Wheels . | . . . . Hover . | . . . . Flight . | . . . . Fastest Speed 50 | 50 160 160 50 Average Speed 162 | 123 160 160 167 Slowest Speed 200 | 160 160 160 200 Overloaded Moves . | . . . . Propulsion Burnouts . | . . . . Robots Hopped . | . . . . Potential Cave-ins . | . . . . Cave-ins Triggered . | . . . . Exploration Rate (%) 62 | 4 95 99 53 Regions Visited 3 Branch Regions 2 Pre-discovered Areas 1 | . . . 1 Known Exits Taken 3 | 1 1 1 . Unknown Exits Taken . | . . . . Scrap Searched 14 | . . . 14 Spaces Dug . | . . . . Terrain Destroyed . | . . . . Melee . | . . . . Projectile . | . . . . AOE . | . . . . Terrain Rammed . | . . . . Walls Destroyed . | . . . . Machines Disabled . | . . . . Actions | -11 -10 -10 -10 --------- Run | Yrd Mat Min Sub Total 3559 | 62 938 801 1758 Wait 752 | . 203 49 500 Move 2572 | 47 669 734 1122 Hop . | . . . . Pick Up 19 | 7 5 1 6 Fast Attach 1 | . 1 . . Attach 9 | 4 3 . 2 Detach . | . . . . Swap 7 | . 1 . 6 Drop 7 | . 1 1 5 Fire 186 | 4 55 16 111 Melee . | . . . . Ram 6 | . . . 6 Kick . | . . . . Crush . | . . . . Escape Stasis . | . . . . Rewire . | . . . . Trap . | . . . . Miscellaneous . | . . . . Route ------- -11/Scrapyard -10/Materials (discovered 4 exits: *Mat x3 / *Min) -10/Mines (discovered 4 exits: *Mat x2 / *Exi / *Sub) -10/Subcaves (discovered 3 exits: *Mat / *Rec / [*Scr]) History --------- Turn | Location | Event 8 | -11/Scrapyard | Identified exit to Materials 8 | -11/Scrapyard | Discovered exit to Materials (range 15) 78 | -11/Scrapyard | Entered Materials 78 | -10/Materials | Evolved 1 slot: Utility x1 244 | -10/Materials | Identified exit to Mines 244 | -10/Materials | Discovered exit to Mines (range 5) 307 | -10/Materials | Build established: Hacker-Mutant 557 | -10/Materials | Identified exit to Materials 557 | -10/Materials | Discovered exit to Materials (range 16) 917 | -10/Materials | Discovered exit to Materials (range 10) 1061 | -10/Materials | Discovered exit to Materials (range 14) 1501 | -10/Materials | Entered Mines 1628 | -10/Mines | Found a Scrap Suit stashed away for nefarious purposes 1632 | -10/Mines | Found Scrap Suit 1741 | -10/Mines | Deemed a non-threat by the Exiles lab entrance 1741 | -10/Mines | Identified exit to Exiles 1741 | -10/Mines | Discovered exit to Exiles (range 5) 1749 | -10/Mines | Discovered exit to Materials (range 12) 1857 | -10/Mines | YI-UF0 nonchalantly dropped a Grenade Launcher on the ground 1929 | -10/Mines | Identified exit to Subcaves 1929 | -10/Mines | Discovered exit to Subcaves (range 6) 2036 | -10/Mines | Assisted by bots powering up and referring to "LRC-V3" 2774 | -10/Mines | Entered Subcaves 2774 | -10/Subcaves | Accompanied by 3 allies 2775 | -10/Subcaves | Approached by a straggling Scientist 2863 | -10/Subcaves | A swath of the cavern ceiling suddenly collapsed 3646 | -10/Subcaves | A swath of the cavern ceiling suddenly collapsed 3939 | -10/Subcaves | Identified exit to Recycling 3939 | -10/Subcaves | Discovered exit to Recycling (range 10) 4001 | -10/Subcaves | Shifting Twisted Machinery released Barrage Gun 4420 | -10/Subcaves | Identified exit to Materials 4420 | -10/Subcaves | Discovered exit to Materials (range 16) 4539 | -10/Subcaves | Learned location of Zion (-6) 4539 | -10/Subcaves | Met a Zionite searching for "candidates" 4552 | -10/Subcaves | Learned 4 Materials zone layouts 5012 | -10/Subcaves | Core integrity fell below 50% 5499 | -10/Subcaves | Learned Materials stockpile data 5576 | -10/Subcaves | Core integrity fell below 20% 5591 | -10/Subcaves | Destroyed by YK-7FX(R) with Subdweller Beam Cannon Last Messages --------------- 05027_ Acquired 4 matter. 05046_ Sub. Power Source fried. 05046_ PR-0AI(R) destroyed. 05049_ Acquired 4 matter. 05056_ Subatomizers dissect the Sub. Machine Gun, destroying it. 05228_ Acquired 5 matter. 05236_ Acquired 3 matter. 05299_ PM-I0N(u) tweaks Twisted Machinery. 05333_ PM-I0N(u) builds Twisted Machinery. 05336_ PM-I0N(u) tweaks Twisted Machinery. 05406_ Slammed into PM-I0N(u). 05499_ Acquired derelict log, extracted data. Data stored: Materials stockpile data. 05505_ Acquired 40 matter. 05565_ Riot Gun destroyed. 05571_ Barrage Gun destroyed. 05572_ Slammed into YK-7FX(R). 05573_ Destabilizing: System corrupted (+1). 05574_ Slammed into YK-7FX(R). Map ----- +----------------------------------------------------+ | ?????????????????????????????????????????? | | ?????????????????????????????????????????? | | ???#?????????????????????????????????????? | | ????###??????????????????????????????????? | | ?#?####?#????????????????????????????????? | | ##?#?#??###?#????????????????????????????? | | ?###??#?#???????#?#??????????????????????? | | #?##?##?###?##????#??????????????????????? | | #?#?##?###????#?#????#???????????????????? | | ?####?#?#?####????#?###??????????????????? | | ###?##??#????#?###???#??#????????????????? | | ####?##?###?##??##?###???????????????????? | | #################?####??##?????????????? | | ##?### #" ####?###?#?#?????????????? | | #####" #??##?#??##??#???#??????? | | ##?### & " ###??##?????##??????????? | | ###??# #?#####?#????##?##??????? | | ######" #### ###?######??????????????? | | ###?## & #"### ?##### #?????#????????? | | ?###### # ## ### ??#????#??##???? | | ###### %| #?## ???#??##??#?????? | | # ## # # # ### ##?##????????????? | | ######### ##?#??#???#??????? | | ##### ### ###???#??????????? | | #### #?# ##???##?#??????? | | ## #### R@ #?##??##??????? | | ##### % R#####????????#? | | ! ## ######## ## ###??##??#????? | | ### ####### #### #?####?##??##?? | | ##### ##?### "##?####???#????##??? | | ######## ##??# ###???##??##??#?????? | | ######## #### ######????#???????#? | | ###### # % #######??##?##??#?? | | ##?# ########???##?????? | | ?# ## ### #????#????#?#?????? | | # #### ##?## ##??##???#??#?????? | | # # "##?##? ##??#?#???#??#????? | | ##?##?#? #??#?#?#?#?#?????? | | #?##?##? ####???##?#?????? | | ## ?? ?#### ##??###?#???????? | | ### ? ?? ?"?" ##?#????????????? | | ###?## ? ??? ""% ####?#??????????? | | # ##??#?# ?#??""? "" ?##?#??????????? | | ? ?####?#??##"? """ ??????????????? | | ???? #????##?#???? ""??????????????? | | ???? ????#?#?#??"??""#??#????????????? | | ? ? ?? ?? ??###???#???????????????????? | | ?? ???????? ????#?#??#?"#???????????????? | | ?#?? ???????????"????????????????????????? | | ? ? ?????? ??????????????????????????????? | +----------------------------------------------------+ Best States ------------- Heat Dissipation 25 Energy Generation 10 Energy Capacity 250 Matter Stores 300 Matter Capacity 300 Sight Range 16 Terrain Scan Range 16 Terrain Scan Density 160 Resistance: KI 35 Resistance: TH 35 Resistance: EX 35 Resistance: EM 35 Resistance: I 35 Resistance: S 35 Resistance: P 35 Evasion (%) 50 Recoil Reduction 2 Offensive Hacking 20 Item Schematics ----------------- None Robot Schematics ------------------ None Fabricated ------------ Nothing Repaired ---------- Nothing Studied --------- None Alien Tech Used ----------------- None Achievements -------------- None Challenges ------------ None Game ------ Seed WeldingNetworkedWell Manual? 0 Play Time 00:19:23 Cumulative 164.3 hours Start 2025.12.04 @ 08:12:12 End 2025.12.04 @ 08:41:32 Sessions 1 Manual Loads 0 Difficulty Explorer Special Mode None Game No. 219 Rogue 0 Adventurer 0 Explorer 219 Win Type - Total 0 Types 0/0/0/0/0/0/0/0/0/0 Lore% 70 Gallery% 66 Achievement% 52 Wizard Run 0 Options --------- Layout 1 ASCII 0 Keyboard 0 Movement Mouse Keybinds 0 Fullscreen 1 Font 24/Smallcaps Map View 50x35 Zoom Use 0% Tactical HUD 1 Map Filters NONE Filters NONE Steam 1 RUN: 5160fe38-b972-48fc-8b08-57cb52bafb90